Workbook

Sheet Menu
E23: www.planilhasparaconfeccao.com.br
D24: © 2012 - Pedro Paulo Andriani. Todos os direitos reservados.
F25: Versão 1.0
D51: =IF(AU!AB2=0,"ATENÇÃO ! A planilha foi violada, portanto as informações não são mais confiáveis.","") -> 

Sheet AU (hidden)
AB1: 2100-01-01 | XFD1: =TODAY()+46 -> 2016-10-10
AB2: =IF(AB8=0,0,IF(AB1<TODAY(),0,1)) -> 1 | XFD2: =TODAY()+46 -> 2016-10-10
AB4: © 2012 - Pedro Paulo Andriani. Todos os direitos reservados.
AB5: www.planilhasparaconfeccao.com.br
AB6: =CONCATENATE(AB4,AB5) -> © 2012 - Pedro Paulo Andriani. Todos os direitos reservados.www.planilhasparaconfeccao.com.br
AB7: =CONCATENATE(Menu!D24,Menu!E23) -> © 2012 - Pedro Paulo Andriani. Todos os direitos reservados.www.planilhasparaconfeccao.com.br
AB8: =IF(AB6<>AB7,0,1) -> 1

Sheet Abastecimento (hidden)
A1: Abastecimento da Produção | C1: =C5 -> 2016-08-25 | D1: =D5 -> 2016-08-26 | E1: 2016-08-29 | F1: 2016-08-30 | G1: 2016-08-31 | H1: 2016-09-01 | I1: 2016-09-02 | J1: 2016-09-05 | K1: 2016-09-06 | L1: 2016-09-08 | M1: 2016-09-09 | N1: 2016-09-12 | O1: 2016-09-13 | P1: 2016-09-14 | Q1: 2016-09-15 | R1: 2016-09-16 | S1: 2016-09-19 | T1: 2016-09-20 | U1: 2016-09-21 | V1: 2016-09-22 | W1: 2016-09-23 | X1: 2016-09-26 | Y1: 2016-09-27 | Z1: 2016-09-28 | AA1: 2016-09-29 | AB1: 2016-09-30 | AC1: 2016-10-03 | AD1: =AD5 -> 2016-10-04 | AE1: 2016-10-05 | AF1: 2016-10-06 | AG1: =AG5 -> 2016-10-07 | AH1: 2016-10-10 | AI1: 2016-10-11 | AJ1: 2016-10-13 | AK1: 2016-10-14 | AL1: 2016-10-17 | AM1: 2016-10-18 | AN1: 2016-10-19 | AO1: 2016-10-20 | AP1: 2016-10-21 | AQ1: =AQ5 -> 2016-10-24 | AR1: 2016-10-25 | AS1: 2016-10-26 | AT1: 2016-10-27 | AU1: 2016-10-28 | AV1: 2016-10-31 | AW1: 2016-11-01 | AX1: 2016-11-03 | AY1: 2016-11-04 | AZ1: 2016-11-07 | BA1: 2016-11-08 | BB1: 2016-11-09 | BC1: 2016-11-10 | BD1: 2016-11-11 | BE1: 2016-11-14 | BF1: 2016-11-16 | BG1: 2016-11-17 | BH1: 2016-11-18 | BI1: 2016-11-21 | BJ1: 2016-11-22 | BK1: 2016-11-23 | BL1: 2016-11-24 | BM1: 2016-11-25 | BN1: 2016-11-28 | BO1: 2016-11-29 | BP1: 2016-11-30 | BQ1: 2016-12-01 | BR1: 2016-12-02 | BS1: 2016-12-05 | BT1: 2016-12-06 | BU1: 2016-12-07 | BV1: 2016-12-08 | BW1: 2016-12-09 | BX1: 2016-12-12 | BY1: 2016-12-13 | BZ1: 2016-12-14 | CA1: 2016-12-15 | CB1: 2016-12-16 | CC1: 2016-12-19 | CD1: 2016-12-20 | CE1: 2016-12-21 | CF1: 2016-12-22 | CG1: 2016-12-23 | CH1: 2016-12-26 | CI1: 2016-12-27 | CJ1: 2016-12-28 | CK1: 2016-12-29 | CL1: 2016-12-30 | CM1: 2017-01-02 | CN1: 2017-01-03 | CO1: 2017-01-04 | CP1: 2017-01-05 | CQ1: 2017-01-06 | CR1: 2017-01-09 | CS1: 2017-01-10 | CT1: 2017-01-11 | CU1: 2017-01-12 | CV1: 2017-01-13 | CW1: 2017-01-16 | CX1: 2017-01-17 | CY1: 2017-01-18 | CZ1: 2017-01-19 | DA1: 2017-01-20 | DB1: 2017-01-23 | DC1: =DC5 -> 2017-01-24 | DD1: 2017-01-25 | DE1: 2017-01-26 | DF1: 2017-01-27 | DG1: 2017-01-30 | DH1: 2017-01-31 | DI1: 2017-02-01 | DJ1: 2017-02-02 | DK1: 2017-02-03 | DL1: 2017-02-06 | DM1: 2017-02-07 | DN1: 2017-02-08 | DO1: 2017-02-09 | DP1: 2017-02-10 | DQ1: 2017-02-13 | DR1: 2017-02-14 | DS1: 2017-02-15 | DT1: 2017-02-16 | DU1: 2017-02-17 | DV1: 2017-02-20 | DW1: 2017-02-21 | DX1: 2017-02-22 | DY1: 2017-02-23 | DZ1: 2017-02-24 | EA1: 2017-03-01 | EB1: 2017-03-02 | EC1: 2017-03-03 | ED1: 2017-03-06 | EE1: 2017-03-07 | EF1: 2017-03-08 | EG1: 2017-03-09 | EH1: 2017-03-10 | EI1: 2017-03-13 | EJ1: 2017-03-14 | EK1: 2017-03-15 | EL1: 2017-03-16 | EM1: =EM5 -> 2017-03-17 | EN1: 2017-03-20 | EO1: 2017-03-21 | EP1: 2017-03-22 | EQ1: 2017-03-23 | ER1: 2017-03-24 | ES1: 2017-03-27 | ET1: 2017-03-28 | EU1: 2017-03-29 | EV1: 2017-03-30 | EW1: =EW5 -> 2017-03-31 | EX1: 2017-04-03 | EY1: 2017-04-04 | EZ1: 2017-04-05 | FA1: 2017-04-06 | FB1: 2017-04-07 | FC1: 2017-04-10 | FD1: 2017-04-11 | FE1: 2017-04-12 | FF1: 2017-04-13
A2: Esta linha serve somente para formatação condicional da linha 1 e 4 para sábados e domingos. | C2: =WEEKDAY(C5) -> 5 | D2: =WEEKDAY(D5) -> 6 | E2: 2 | F2: 3 | G2: 4 | H2: 5 | I2: 6 | J2: 2 | K2: 3 | L2: 5 | M2: 6 | N2: 2 | O2: 3 | P2: 4 | Q2: 5 | R2: 6 | S2: 2 | T2: 3 | U2: 4 | V2: 5 | W2: 6 | X2: 2 | Y2: 3 | Z2: 4 | AA2: 5 | AB2: 6 | AC2: 2 | AD2: 3 | AE2: 4 | AF2: 5 | AG2: 6 | AH2: 2 | AI2: 3 | AJ2: 5 | AK2: 6 | AL2: 2 | AM2: 3 | AN2: 4 | AO2: 5 | AP2: 6 | AQ2: 2 | AR2: 3 | AS2: 4 | AT2: 5 | AU2: 6 | AV2: 2 | AW2: 3 | AX2: 5 | AY2: 6 | AZ2: 2 | BA2: 3 | BB2: 4 | BC2: 5 | BD2: 6 | BE2: 2 | BF2: 4 | BG2: 5 | BH2: 6 | BI2: 2 | BJ2: 3 | BK2: 4 | BL2: 5 | BM2: 6 | BN2: 2 | BO2: 3 | BP2: =WEEKDAY(BP5) -> 4 | BQ2: 5 | BR2: 6 | BS2: 2 | BT2: 3 | BU2: 4 | BV2: 5 | BW2: 6 | BX2: 2 | BY2: 3 | BZ2: 4 | CA2: 5 | CB2: 6 | CC2: 2 | CD2: 3 | CE2: 4 | CF2: 5 | CG2: 6 | CH2: 2 | CI2: 3 | CJ2: 4 | CK2: 5 | CL2: 6 | CM2: 2 | CN2: 3 | CO2: 4 | CP2: 5 | CQ2: 6 | CR2: 2 | CS2: 3 | CT2: 4 | CU2: 5 | CV2: 6 | CW2: 2 | CX2: 3 | CY2: 4 | CZ2: 5 | DA2: 6 | DB2: 2 | DC2: 3 | DD2: 4 | DE2: 5 | DF2: 6 | DG2: 2 | DH2: 3 | DI2: 4 | DJ2: 5 | DK2: 6 | DL2: 2 | DM2: 3 | DN2: 4 | DO2: 5 | DP2: 6 | DQ2: 2 | DR2: 3 | DS2: 4 | DT2: 5 | DU2: 6 | DV2: 2 | DW2: 3 | DX2: 4 | DY2: 5 | DZ2: 6 | EA2: 4 | EB2: =WEEKDAY(EB5) -> 5 | EC2: 6 | ED2: 2 | EE2: 3 | EF2: 4 | EG2: 5 | EH2: 6 | EI2: 2 | EJ2: 3 | EK2: 4 | EL2: 5 | EM2: 6 | EN2: 2 | EO2: 3 | EP2: 4 | EQ2: 5 | ER2: 6 | ES2: 2 | ET2: 3 | EU2: 4 | EV2: 5 | EW2: 6 | EX2: 2 | EY2: 3 | EZ2: 4 | FA2: 5 | FB2: 6 | FC2: 2 | FD2: 3 | FE2: 4 | FF2: 5
A3: =TODAY()-1 -> 2016-08-24 | C3: =VLOOKUP(A3,'Dias úteis'!B:C,2,FALSE)+1 -> 252 | D3: =C3+1 -> 253 | E3: =D3+1 -> 254 | F3: 255 | G3: 256 | H3: 257 | I3: 258 | J3: 259 | K3: 260 | L3: 261 | M3: 262 | N3: 263 | O3: 264 | P3: 265 | Q3: 266 | R3: 267 | S3: 268 | T3: 269 | U3: 270 | V3: 271 | W3: 272 | X3: 273 | Y3: 274 | Z3: 275 | AA3: 276 | AB3: 277 | AC3: 278 | AD3: =AC3+1 -> 279 | AE3: 280 | AF3: 281 | AG3: =AF3+1 -> 282 | AH3: 283 | AI3: 284 | AJ3: 285 | AK3: 286 | AL3: 287 | AM3: 288 | AN3: 289 | AO3: 290 | AP3: 291 | AQ3: =AP3+1 -> 292 | AR3: 293 | AS3: 294 | AT3: 295 | AU3: 296 | AV3: 297 | AW3: 298 | AX3: 299 | AY3: 300 | AZ3: 301 | BA3: 302 | BB3: 303 | BC3: 304 | BD3: 305 | BE3: 306 | BF3: 307 | BG3: 308 | BH3: 309 | BI3: 310 | BJ3: 311 | BK3: 312 | BL3: 313 | BM3: 314 | BN3: 315 | BO3: 316 | BP3: 317 | BQ3: 318 | BR3: 319 | BS3: 320 | BT3: 321 | BU3: 322 | BV3: 323 | BW3: 324 | BX3: 325 | BY3: 326 | BZ3: 327 | CA3: 328 | CB3: 329 | CC3: 330 | CD3: 331 | CE3: 332 | CF3: 333 | CG3: 334 | CH3: 335 | CI3: 336 | CJ3: 337 | CK3: 338 | CL3: 339 | CM3: 340 | CN3: 341 | CO3: 342 | CP3: 343 | CQ3: 344 | CR3: 345 | CS3: 346 | CT3: 347 | CU3: 348 | CV3: 349 | CW3: 350 | CX3: 351 | CY3: 352 | CZ3: 353 | DA3: 354 | DB3: 355 | DC3: =DB3+1 -> 356 | DD3: 357 | DE3: 358 | DF3: 359 | DG3: 360 | DH3: 361 | DI3: 362 | DJ3: 363 | DK3: 364 | DL3: 365 | DM3: 366 | DN3: 367 | DO3: 368 | DP3: 369 | DQ3: 370 | DR3: 371 | DS3: 372 | DT3: 373 | DU3: 374 | DV3: 375 | DW3: 376 | DX3: 377 | DY3: 378 | DZ3: 379 | EA3: 380 | EB3: 381 | EC3: 382 | ED3: 383 | EE3: 384 | EF3: 385 | EG3: 386 | EH3: 387 | EI3: 388 | EJ3: 389 | EK3: 390 | EL3: 391 | EM3: =EL3+1 -> 392 | EN3: 393 | EO3: 394 | EP3: 395 | EQ3: 396 | ER3: 397 | ES3: 398 | ET3: 399 | EU3: 400 | EV3: 401 | EW3: =EV3+1 -> 402 | EX3: 403 | EY3: 404 | EZ3: 405 | FA3: 406 | FB3: 407 | FC3: 408 | FD3: 409 | FE3: 410 | FF3: 411
A4: Seq. | C4: 1 | D4: =C4+1 -> 2 | E4: =D4+1 -> 3 | F4: 4 | G4: 5 | H4: 6 | I4: 7 | J4: 8 | K4: 9 | L4: 10 | M4: 11 | N4: 12 | O4: 13 | P4: 14 | Q4: 15 | R4: 16 | S4: 17 | T4: 18 | U4: 19 | V4: 20 | W4: 21 | X4: 22 | Y4: 23 | Z4: 24 | AA4: 25 | AB4: 26 | AC4: 27 | AD4: =AC4+1 -> 28 | AE4: 29 | AF4: 30 | AG4: =AF4+1 -> 31 | AH4: 32 | AI4: 33 | AJ4: 34 | AK4: 35 | AL4: 36 | AM4: 37 | AN4: 38 | AO4: 39 | AP4: 40 | AQ4: =AP4+1 -> 41 | AR4: 42 | AS4: 43 | AT4: 44 | AU4: 45 | AV4: 46 | AW4: 47 | AX4: 48 | AY4: 49 | AZ4: 50 | BA4: 51 | BB4: 52 | BC4: 53 | BD4: 54 | BE4: 55 | BF4: 56 | BG4: 57 | BH4: 58 | BI4: 59 | BJ4: 60 | BK4: 61 | BL4: 62 | BM4: 63 | BN4: 64 | BO4: 65 | BP4: 66 | BQ4: 67 | BR4: 68 | BS4: 69 | BT4: 70 | BU4: 71 | BV4: 72 | BW4: 73 | BX4: 74 | BY4: 75 | BZ4: 76 | CA4: 77 | CB4: 78 | CC4: 79 | CD4: 80 | CE4: 81 | CF4: 82 | CG4: 83 | CH4: 84 | CI4: 85 | CJ4: 86 | CK4: 87 | CL4: 88 | CM4: 89 | CN4: 90 | CO4: 91 | CP4: 92 | CQ4: 93 | CR4: 94 | CS4: 95 | CT4: 96 | CU4: 97 | CV4: 98 | CW4: 99 | CX4: 100 | CY4: 101 | CZ4: 102 | DA4: 103 | DB4: 104 | DC4: =DB4+1 -> 105 | DD4: 106 | DE4: 107 | DF4: 108 | DG4: 109 | DH4: 110 | DI4: 111 | DJ4: 112 | DK4: 113 | DL4: 114 | DM4: 115 | DN4: 116 | DO4: 117 | DP4: 118 | DQ4: 119 | DR4: 120 | DS4: 121 | DT4: 122 | DU4: 123 | DV4: 124 | DW4: 125 | DX4: 126 | DY4: 127 | DZ4: 128 | EA4: 129 | EB4: 130 | EC4: 131 | ED4: 132 | EE4: 133 | EF4: 134 | EG4: 135 | EH4: 136 | EI4: 137 | EJ4: 138 | EK4: 139 | EL4: 140 | EM4: =EL4+1 -> 141 | EN4: 142 | EO4: 143 | EP4: 144 | EQ4: 145 | ER4: 146 | ES4: 147 | ET4: 148 | EU4: 149 | EV4: 150 | EW4: =EV4+1 -> 151 | EX4: 152 | EY4: 153 | EZ4: 154 | FA4: 155 | FB4: 156 | FC4: 157 | FD4: 158 | FE4: 159 | FF4: 160
A5: Setores | B5: Dias produção | C5: =VLOOKUP(C3,'Dias úteis'!$A:$B,2,FALSE) -> 2016-08-25 | D5: =VLOOKUP(D3,'Dias úteis'!$A:$B,2,FALSE) -> 2016-08-26 | E5: =VLOOKUP(E3,'Dias úteis'!$A:$B,2,FALSE) -> 2016-08-29 | F5: =VLOOKUP(F3,'Dias úteis'!$A:$B,2,FALSE) -> 2016-08-30 | G5: =VLOOKUP(G3,'Dias úteis'!$A:$B,2,FALSE) -> 2016-08-31 | H5: =VLOOKUP(H3,'Dias úteis'!$A:$B,2,FALSE) -> 2016-09-01 | I5: =VLOOKUP(I3,'Dias úteis'!$A:$B,2,FALSE) -> 2016-09-02 | J5: =VLOOKUP(J3,'Dias úteis'!$A:$B,2,FALSE) -> 2016-09-05 | K5: =VLOOKUP(K3,'Dias úteis'!$A:$B,2,FALSE) -> 2016-09-06 | L5: =VLOOKUP(L3,'Dias úteis'!$A:$B,2,FALSE) -> 2016-09-08 | M5: =VLOOKUP(M3,'Dias úteis'!$A:$B,2,FALSE) -> 2016-09-09 | N5: =VLOOKUP(N3,'Dias úteis'!$A:$B,2,FALSE) -> 2016-09-12 | O5: =VLOOKUP(O3,'Dias úteis'!$A:$B,2,FALSE) -> 2016-09-13 | P5: =VLOOKUP(P3,'Dias úteis'!$A:$B,2,FALSE) -> 2016-09-14 | Q5: =VLOOKUP(Q3,'Dias úteis'!$A:$B,2,FALSE) -> 2016-09-15 | R5: =VLOOKUP(R3,'Dias úteis'!$A:$B,2,FALSE) -> 2016-09-16 | S5: =VLOOKUP(S3,'Dias úteis'!$A:$B,2,FALSE) -> 2016-09-19 | T5: =VLOOKUP(T3,'Dias úteis'!$A:$B,2,FALSE) -> 2016-09-20 | U5: =VLOOKUP(U3,'Dias úteis'!$A:$B,2,FALSE) -> 2016-09-21 | V5: =VLOOKUP(V3,'Dias úteis'!$A:$B,2,FALSE) -> 2016-09-22 | W5: =VLOOKUP(W3,'Dias úteis'!$A:$B,2,FALSE) -> 2016-09-23 | X5: =VLOOKUP(X3,'Dias úteis'!$A:$B,2,FALSE) -> 2016-09-26 | Y5: =VLOOKUP(Y3,'Dias úteis'!$A:$B,2,FALSE) -> 2016-09-27 | Z5: =VLOOKUP(Z3,'Dias úteis'!$A:$B,2,FALSE) -> 2016-09-28 | AA5: =VLOOKUP(AA3,'Dias úteis'!$A:$B,2,FALSE) -> 2016-09-29 | AB5: =VLOOKUP(AB3,'Dias úteis'!$A:$B,2,FALSE) -> 2016-09-30 | AC5: =VLOOKUP(AC3,'Dias úteis'!$A:$B,2,FALSE) -> 2016-10-03 | AD5: =VLOOKUP(AD3,'Dias úteis'!$A:$B,2,FALSE) -> 2016-10-04 | AE5: =VLOOKUP(AE3,'Dias úteis'!$A:$B,2,FALSE) -> 2016-10-05 | AF5: =VLOOKUP(AF3,'Dias úteis'!$A:$B,2,FALSE) -> 2016-10-06 | AG5: =VLOOKUP(AG3,'Dias úteis'!$A:$B,2,FALSE) -> 2016-10-07 | AH5: =VLOOKUP(AH3,'Dias úteis'!$A:$B,2,FALSE) -> 2016-10-10 | AI5: =VLOOKUP(AI3,'Dias úteis'!$A:$B,2,FALSE) -> 2016-10-11 | AJ5: =VLOOKUP(AJ3,'Dias úteis'!$A:$B,2,FALSE) -> 2016-10-13 | AK5: =VLOOKUP(AK3,'Dias úteis'!$A:$B,2,FALSE) -> 2016-10-14 | AL5: =VLOOKUP(AL3,'Dias úteis'!$A:$B,2,FALSE) -> 2016-10-17 | AM5: =VLOOKUP(AM3,'Dias úteis'!$A:$B,2,FALSE) -> 2016-10-18 | AN5: =VLOOKUP(AN3,'Dias úteis'!$A:$B,2,FALSE) -> 2016-10-19 | AO5: =VLOOKUP(AO3,'Dias úteis'!$A:$B,2,FALSE) -> 2016-10-20 | AP5: =VLOOKUP(AP3,'Dias úteis'!$A:$B,2,FALSE) -> 2016-10-21 | AQ5: =VLOOKUP(AQ3,'Dias úteis'!$A:$B,2,FALSE) -> 2016-10-24 | AR5: =VLOOKUP(AR3,'Dias úteis'!$A:$B,2,FALSE) -> 2016-10-25 | AS5: =VLOOKUP(AS3,'Dias úteis'!$A:$B,2,FALSE) -> 2016-10-26 | AT5: =VLOOKUP(AT3,'Dias úteis'!$A:$B,2,FALSE) -> 2016-10-27 | AU5: =VLOOKUP(AU3,'Dias úteis'!$A:$B,2,FALSE) -> 2016-10-28 | AV5: =VLOOKUP(AV3,'Dias úteis'!$A:$B,2,FALSE) -> 2016-10-31 | AW5: =VLOOKUP(AW3,'Dias úteis'!$A:$B,2,FALSE) -> 2016-11-01 | AX5: =VLOOKUP(AX3,'Dias úteis'!$A:$B,2,FALSE) -> 2016-11-03 | AY5: =VLOOKUP(AY3,'Dias úteis'!$A:$B,2,FALSE) -> 2016-11-04 | AZ5: =VLOOKUP(AZ3,'Dias úteis'!$A:$B,2,FALSE) -> 2016-11-07 | BA5: =VLOOKUP(BA3,'Dias úteis'!$A:$B,2,FALSE) -> 2016-11-08 | BB5: =VLOOKUP(BB3,'Dias úteis'!$A:$B,2,FALSE) -> 2016-11-09 | BC5: =VLOOKUP(BC3,'Dias úteis'!$A:$B,2,FALSE) -> 2016-11-10 | BD5: =VLOOKUP(BD3,'Dias úteis'!$A:$B,2,FALSE) -> 2016-11-11 | BE5: =VLOOKUP(BE3,'Dias úteis'!$A:$B,2,FALSE) -> 2016-11-14 | BF5: =VLOOKUP(BF3,'Dias úteis'!$A:$B,2,FALSE) -> 2016-11-16 | BG5: =VLOOKUP(BG3,'Dias úteis'!$A:$B,2,FALSE) -> 2016-11-17 | BH5: =VLOOKUP(BH3,'Dias úteis'!$A:$B,2,FALSE) -> 2016-11-18 | BI5: =VLOOKUP(BI3,'Dias úteis'!$A:$B,2,FALSE) -> 2016-11-21 | BJ5: =VLOOKUP(BJ3,'Dias úteis'!$A:$B,2,FALSE) -> 2016-11-22 | BK5: =VLOOKUP(BK3,'Dias úteis'!$A:$B,2,FALSE) -> 2016-11-23 | BL5: =VLOOKUP(BL3,'Dias úteis'!$A:$B,2,FALSE) -> 2016-11-24 | BM5: =VLOOKUP(BM3,'Dias úteis'!$A:$B,2,FALSE) -> 2016-11-25 | BN5: =VLOOKUP(BN3,'Dias úteis'!$A:$B,2,FALSE) -> 2016-11-28 | BO5: =VLOOKUP(BO3,'Dias úteis'!$A:$B,2,FALSE) -> 2016-11-29 | BP5: =VLOOKUP(BP3,'Dias úteis'!$A:$B,2,FALSE) -> 2016-11-30 | BQ5: =VLOOKUP(BQ3,'Dias úteis'!$A:$B,2,FALSE) -> 2016-12-01 | BR5: =VLOOKUP(BR3,'Dias úteis'!$A:$B,2,FALSE) -> 2016-12-02 | BS5: =VLOOKUP(BS3,'Dias úteis'!$A:$B,2,FALSE) -> 2016-12-05 | BT5: =VLOOKUP(BT3,'Dias úteis'!$A:$B,2,FALSE) -> 2016-12-06 | BU5: =VLOOKUP(BU3,'Dias úteis'!$A:$B,2,FALSE) -> 2016-12-07 | BV5: =VLOOKUP(BV3,'Dias úteis'!$A:$B,2,FALSE) -> 2016-12-08 | BW5: =VLOOKUP(BW3,'Dias úteis'!$A:$B,2,FALSE) -> 2016-12-09 | BX5: =VLOOKUP(BX3,'Dias úteis'!$A:$B,2,FALSE) -> 2016-12-12 | BY5: =VLOOKUP(BY3,'Dias úteis'!$A:$B,2,FALSE) -> 2016-12-13 | BZ5: =VLOOKUP(BZ3,'Dias úteis'!$A:$B,2,FALSE) -> 2016-12-14 | CA5: =VLOOKUP(CA3,'Dias úteis'!$A:$B,2,FALSE) -> 2016-12-15 | CB5: =VLOOKUP(CB3,'Dias úteis'!$A:$B,2,FALSE) -> 2016-12-16 | CC5: =VLOOKUP(CC3,'Dias úteis'!$A:$B,2,FALSE) -> 2016-12-19 | CD5: =VLOOKUP(CD3,'Dias úteis'!$A:$B,2,FALSE) -> 2016-12-20 | CE5: =VLOOKUP(CE3,'Dias úteis'!$A:$B,2,FALSE) -> 2016-12-21 | CF5: =VLOOKUP(CF3,'Dias úteis'!$A:$B,2,FALSE) -> 2016-12-22 | CG5: =VLOOKUP(CG3,'Dias úteis'!$A:$B,2,FALSE) -> 2016-12-23 | CH5: =VLOOKUP(CH3,'Dias úteis'!$A:$B,2,FALSE) -> 2016-12-26 | CI5: =VLOOKUP(CI3,'Dias úteis'!$A:$B,2,FALSE) -> 2016-12-27 | CJ5: =VLOOKUP(CJ3,'Dias úteis'!$A:$B,2,FALSE) -> 2016-12-28 | CK5: =VLOOKUP(CK3,'Dias úteis'!$A:$B,2,FALSE) -> 2016-12-29 | CL5: =VLOOKUP(CL3,'Dias úteis'!$A:$B,2,FALSE) -> 2016-12-30 | CM5: =VLOOKUP(CM3,'Dias úteis'!$A:$B,2,FALSE) -> 2017-01-02 | CN5: =VLOOKUP(CN3,'Dias úteis'!$A:$B,2,FALSE) -> 2017-01-03 | CO5: =VLOOKUP(CO3,'Dias úteis'!$A:$B,2,FALSE) -> 2017-01-04 | CP5: =VLOOKUP(CP3,'Dias úteis'!$A:$B,2,FALSE) -> 2017-01-05 | CQ5: =VLOOKUP(CQ3,'Dias úteis'!$A:$B,2,FALSE) -> 2017-01-06 | CR5: =VLOOKUP(CR3,'Dias úteis'!$A:$B,2,FALSE) -> 2017-01-09 | CS5: =VLOOKUP(CS3,'Dias úteis'!$A:$B,2,FALSE) -> 2017-01-10 | CT5: =VLOOKUP(CT3,'Dias úteis'!$A:$B,2,FALSE) -> 2017-01-11 | CU5: =VLOOKUP(CU3,'Dias úteis'!$A:$B,2,FALSE) -> 2017-01-12 | CV5: =VLOOKUP(CV3,'Dias úteis'!$A:$B,2,FALSE) -> 2017-01-13 | CW5: =VLOOKUP(CW3,'Dias úteis'!$A:$B,2,FALSE) -> 2017-01-16 | CX5: =VLOOKUP(CX3,'Dias úteis'!$A:$B,2,FALSE) -> 2017-01-17 | CY5: =VLOOKUP(CY3,'Dias úteis'!$A:$B,2,FALSE) -> 2017-01-18 | CZ5: =VLOOKUP(CZ3,'Dias úteis'!$A:$B,2,FALSE) -> 2017-01-19 | DA5: =VLOOKUP(DA3,'Dias úteis'!$A:$B,2,FALSE) -> 2017-01-20 | DB5: =VLOOKUP(DB3,'Dias úteis'!$A:$B,2,FALSE) -> 2017-01-23 | DC5: =VLOOKUP(DC3,'Dias úteis'!$A:$B,2,FALSE) -> 2017-01-24 | DD5: =VLOOKUP(DD3,'Dias úteis'!$A:$B,2,FALSE) -> 2017-01-25 | DE5: =VLOOKUP(DE3,'Dias úteis'!$A:$B,2,FALSE) -> 2017-01-26 | DF5: =VLOOKUP(DF3,'Dias úteis'!$A:$B,2,FALSE) -> 2017-01-27 | DG5: =VLOOKUP(DG3,'Dias úteis'!$A:$B,2,FALSE) -> 2017-01-30 | DH5: =VLOOKUP(DH3,'Dias úteis'!$A:$B,2,FALSE) -> 2017-01-31 | DI5: =VLOOKUP(DI3,'Dias úteis'!$A:$B,2,FALSE) -> 2017-02-01 | DJ5: =VLOOKUP(DJ3,'Dias úteis'!$A:$B,2,FALSE) -> 2017-02-02 | DK5: =VLOOKUP(DK3,'Dias úteis'!$A:$B,2,FALSE) -> 2017-02-03 | DL5: =VLOOKUP(DL3,'Dias úteis'!$A:$B,2,FALSE) -> 2017-02-06 | DM5: =VLOOKUP(DM3,'Dias úteis'!$A:$B,2,FALSE) -> 2017-02-07 | DN5: =VLOOKUP(DN3,'Dias úteis'!$A:$B,2,FALSE) -> 2017-02-08 | DO5: =VLOOKUP(DO3,'Dias úteis'!$A:$B,2,FALSE) -> 2017-02-09 | DP5: =VLOOKUP(DP3,'Dias úteis'!$A:$B,2,FALSE) -> 2017-02-10 | DQ5: =VLOOKUP(DQ3,'Dias úteis'!$A:$B,2,FALSE) -> 2017-02-13 | DR5: =VLOOKUP(DR3,'Dias úteis'!$A:$B,2,FALSE) -> 2017-02-14 | DS5: =VLOOKUP(DS3,'Dias úteis'!$A:$B,2,FALSE) -> 2017-02-15 | DT5: =VLOOKUP(DT3,'Dias úteis'!$A:$B,2,FALSE) -> 2017-02-16 | DU5: =VLOOKUP(DU3,'Dias úteis'!$A:$B,2,FALSE) -> 2017-02-17 | DV5: =VLOOKUP(DV3,'Dias úteis'!$A:$B,2,FALSE) -> 2017-02-20 | DW5: =VLOOKUP(DW3,'Dias úteis'!$A:$B,2,FALSE) -> 2017-02-21 | DX5: =VLOOKUP(DX3,'Dias úteis'!$A:$B,2,FALSE) -> 2017-02-22 | DY5: =VLOOKUP(DY3,'Dias úteis'!$A:$B,2,FALSE) -> 2017-02-23 | DZ5: =VLOOKUP(DZ3,'Dias úteis'!$A:$B,2,FALSE) -> 2017-02-24 | EA5: =VLOOKUP(EA3,'Dias úteis'!$A:$B,2,FALSE) -> 2017-03-01 | EB5: =VLOOKUP(EB3,'Dias úteis'!$A:$B,2,FALSE) -> 2017-03-02 | EC5: =VLOOKUP(EC3,'Dias úteis'!$A:$B,2,FALSE) -> 2017-03-03 | ED5: =VLOOKUP(ED3,'Dias úteis'!$A:$B,2,FALSE) -> 2017-03-06 | EE5: =VLOOKUP(EE3,'Dias úteis'!$A:$B,2,FALSE) -> 2017-03-07 | EF5: =VLOOKUP(EF3,'Dias úteis'!$A:$B,2,FALSE) -> 2017-03-08 | EG5: =VLOOKUP(EG3,'Dias úteis'!$A:$B,2,FALSE) -> 2017-03-09 | EH5: =VLOOKUP(EH3,'Dias úteis'!$A:$B,2,FALSE) -> 2017-03-10 | EI5: =VLOOKUP(EI3,'Dias úteis'!$A:$B,2,FALSE) -> 2017-03-13 | EJ5: =VLOOKUP(EJ3,'Dias úteis'!$A:$B,2,FALSE) -> 2017-03-14 | EK5: =VLOOKUP(EK3,'Dias úteis'!$A:$B,2,FALSE) -> 2017-03-15 | EL5: =VLOOKUP(EL3,'Dias úteis'!$A:$B,2,FALSE) -> 2017-03-16 | EM5: =VLOOKUP(EM3,'Dias úteis'!$A:$B,2,FALSE) -> 2017-03-17 | EN5: =VLOOKUP(EN3,'Dias úteis'!$A:$B,2,FALSE) -> 2017-03-20 | EO5: =VLOOKUP(EO3,'Dias úteis'!$A:$B,2,FALSE) -> 2017-03-21 | EP5: =VLOOKUP(EP3,'Dias úteis'!$A:$B,2,FALSE) -> 2017-03-22 | EQ5: =VLOOKUP(EQ3,'Dias úteis'!$A:$B,2,FALSE) -> 2017-03-23 | ER5: =VLOOKUP(ER3,'Dias úteis'!$A:$B,2,FALSE) -> 2017-03-24 | ES5: =VLOOKUP(ES3,'Dias úteis'!$A:$B,2,FALSE) -> 2017-03-27 | ET5: =VLOOKUP(ET3,'Dias úteis'!$A:$B,2,FALSE) -> 2017-03-28 | EU5: =VLOOKUP(EU3,'Dias úteis'!$A:$B,2,FALSE) -> 2017-03-29 | EV5: =VLOOKUP(EV3,'Dias úteis'!$A:$B,2,FALSE) -> 2017-03-30 | EW5: =VLOOKUP(EW3,'Dias úteis'!$A:$B,2,FALSE) -> 2017-03-31 | EX5: =VLOOKUP(EX3,'Dias úteis'!$A:$B,2,FALSE) -> 2017-04-03 | EY5: =VLOOKUP(EY3,'Dias úteis'!$A:$B,2,FALSE) -> 2017-04-04 | EZ5: =VLOOKUP(EZ3,'Dias úteis'!$A:$B,2,FALSE) -> 2017-04-05 | FA5: =VLOOKUP(FA3,'Dias úteis'!$A:$B,2,FALSE) -> 2017-04-06 | FB5: =VLOOKUP(FB3,'Dias úteis'!$A:$B,2,FALSE) -> 2017-04-07 | FC5: =VLOOKUP(FC3,'Dias úteis'!$A:$B,2,FALSE) -> 2017-04-10 | FD5: =VLOOKUP(FD3,'Dias úteis'!$A:$B,2,FALSE) -> 2017-04-11 | FE5: =VLOOKUP(FE3,'Dias úteis'!$A:$B,2,FALSE) -> 2017-04-12 | FF5: =VLOOKUP(FF3,'Dias úteis'!$A:$B,2,FALSE) -> 2017-04-13
A6: Corte | B6: =IF(AU!$AB$2=0,0,IF(ISERROR(VLOOKUP(A6,Setores!A:I,6,FALSE)),0,VLOOKUP(A6,Setores!A:I,9,FALSE))) -> 1.988636364 | C6: =IF(C$4>$B6,0,IF($B6>C$4,C$4,$B6)) -> 1 | D6: 0 | E6: 0 | F6: 0 | G6: 0 | H6: 0 | I6: 0 | J6: 0 | K6: 0 | L6: 0 | M6: 0 | N6: 0 | O6: 0 | P6: 0 | Q6: 0 | R6: 0 | S6: =IF(S$4>$B6,0,IF($B6>S$4,S$4,$B6)) -> 0 | T6: 0 | U6: 0 | V6: 0 | W6: 0 | X6: 0 | Y6: 0 | Z6: 0 | AA6: 0 | AB6: 0 | AC6: 0 | AD6: 0 | AE6: 0 | AF6: 0 | AG6: 0 | AH6: 0 | AI6: 0 | AJ6: 0 | AK6: 0 | AL6: 0 | AM6: 0 | AN6: 0 | AO6: 0 | AP6: 0 | AQ6: 0 | AR6: 0 | AS6: 0 | AT6: 0 | AU6: 0 | AV6: 0 | AW6: 0 | AX6: 0 | AY6: 0 | AZ6: 0 | BA6: 0 | BB6: 0 | BC6: 0 | BD6: 0 | BE6: 0 | BF6: 0 | BG6: 0 | BH6: 0 | BI6: 0 | BJ6: 0 | BK6: 0 | BL6: 0 | BM6: 0 | BN6: 0 | BO6: 0 | BP6: 0 | BQ6: 0 | BR6: 0 | BS6: 0 | BT6: 0 | BU6: 0 | BV6: 0 | BW6: 0 | BX6: 0 | BY6: 0 | BZ6: 0 | CA6: 0 | CB6: 0 | CC6: 0 | CD6: 0 | CE6: =IF(CE$4>$B6,0,IF($B6>CE$4,CE$4,$B6)) -> 0 | CF6: 0 | CG6: 0 | CH6: 0 | CI6: 0 | CJ6: 0 | CK6: 0 | CL6: 0 | CM6: 0 | CN6: 0 | CO6: 0 | CP6: 0 | CQ6: 0 | CR6: 0 | CS6: 0 | CT6: 0 | CU6: 0 | CV6: 0 | CW6: 0 | CX6: 0 | CY6: 0 | CZ6: 0 | DA6: 0 | DB6: 0 | DC6: 0 | DD6: 0 | DE6: 0 | DF6: 0 | DG6: 0 | DH6: 0 | DI6: 0 | DJ6: 0 | DK6: 0 | DL6: 0 | DM6: 0 | DN6: 0 | DO6: 0 | DP6: 0 | DQ6: 0 | DR6: 0 | DS6: 0 | DT6: 0 | DU6: 0 | DV6: 0 | DW6: 0 | DX6: 0 | DY6: 0 | DZ6: 0 | EA6: 0 | EB6: 0 | EC6: 0 | ED6: 0 | EE6: 0 | EF6: 0 | EG6: 0 | EH6: 0 | EI6: 0 | EJ6: 0 | EK6: 0 | EL6: 0 | EM6: 0 | EN6: 0 | EO6: 0 | EP6: 0 | EQ6: =IF(EQ$4>$B6,0,IF($B6>EQ$4,EQ$4,$B6)) -> 0 | ER6: 0 | ES6: 0 | ET6: 0 | EU6: 0 | EV6: 0 | EW6: 0 | EX6: 0 | EY6: 0 | EZ6: 0 | FA6: 0 | FB6: 0 | FC6: 0 | FD6: 0 | FE6: 0 | FF6: 0
A7: Costura | B7: =IF(AU!$AB$2=0,0,IF(ISERROR(VLOOKUP(A7,Setores!A:I,6,FALSE)),0,VLOOKUP(A7,Setores!A:I,9,FALSE))) -> 1.816287879 | C7: 1 | D7: 0 | E7: 0 | F7: 0 | G7: 0 | H7: 0 | I7: 0 | J7: 0 | K7: 0 | L7: 0 | M7: 0 | N7: 0 | O7: 0 | P7: 0 | Q7: 0 | R7: 0 | S7: 0 | T7: 0 | U7: 0 | V7: 0 | W7: 0 | X7: 0 | Y7: 0 | Z7: 0 | AA7: 0 | AB7: 0 | AC7: 0 | AD7: 0 | AE7: 0 | AF7: 0 | AG7: 0 | AH7: 0 | AI7: 0 | AJ7: 0 | AK7: 0 | AL7: 0 | AM7: 0 | AN7: 0 | AO7: 0 | AP7: 0 | AQ7: 0 | AR7: 0 | AS7: 0 | AT7: 0 | AU7: 0 | AV7: 0 | AW7: 0 | AX7: 0 | AY7: 0 | AZ7: 0 | BA7: 0 | BB7: 0 | BC7: 0 | BD7: 0 | BE7: 0 | BF7: 0 | BG7: 0 | BH7: 0 | BI7: 0 | BJ7: 0 | BK7: 0 | BL7: 0 | BM7: 0 | BN7: 0 | BO7: 0 | BP7: 0 | BQ7: 0 | BR7: 0 | BS7: 0 | BT7: 0 | BU7: 0 | BV7: 0 | BW7: 0 | BX7: 0 | BY7: 0 | BZ7: 0 | CA7: 0 | CB7: 0 | CC7: 0 | CD7: 0 | CE7: 0 | CF7: 0 | CG7: 0 | CH7: 0 | CI7: 0 | CJ7: 0 | CK7: 0 | CL7: 0 | CM7: 0 | CN7: 0 | CO7: 0 | CP7: 0 | CQ7: 0 | CR7: 0 | CS7: 0 | CT7: 0 | CU7: 0 | CV7: 0 | CW7: 0 | CX7: 0 | CY7: 0 | CZ7: 0 | DA7: 0 | DB7: 0 | DC7: 0 | DD7: 0 | DE7: 0 | DF7: 0 | DG7: 0 | DH7: 0 | DI7: 0 | DJ7: 0 | DK7: 0 | DL7: 0 | DM7: 0 | DN7: 0 | DO7: 0 | DP7: 0 | DQ7: 0 | DR7: 0 | DS7: 0 | DT7: 0 | DU7: 0 | DV7: 0 | DW7: 0 | DX7: 0 | DY7: 0 | DZ7: 0 | EA7: 0 | EB7: 0 | EC7: 0 | ED7: 0 | EE7: 0 | EF7: 0 | EG7: 0 | EH7: 0 | EI7: 0 | EJ7: 0 | EK7: 0 | EL7: 0 | EM7: 0 | EN7: 0 | EO7: 0 | EP7: 0 | EQ7: 0 | ER7: 0 | ES7: 0 | ET7: 0 | EU7: 0 | EV7: 0 | EW7: 0 | EX7: 0 | EY7: 0 | EZ7: 0 | FA7: 0 | FB7: 0 | FC7: 0 | FD7: 0 | FE7: 0 | FF7: 0
A8: Estamparia | B8: =IF(AU!$AB$2=0,0,IF(ISERROR(VLOOKUP(A8,Setores!A:I,6,FALSE)),0,VLOOKUP(A8,Setores!A:I,9,FALSE))) -> 0 | C8: 0 | D8: 0 | E8: 0 | F8: 0 | G8: 0 | H8: 0 | I8: 0 | J8: 0 | K8: 0 | L8: 0 | M8: 0 | N8: 0 | O8: 0 | P8: 0 | Q8: 0 | R8: 0 | S8: 0 | T8: 0 | U8: 0 | V8: 0 | W8: 0 | X8: 0 | Y8: 0 | Z8: 0 | AA8: 0 | AB8: 0 | AC8: 0 | AD8: 0 | AE8: 0 | AF8: 0 | AG8: 0 | AH8: 0 | AI8: 0 | AJ8: 0 | AK8: 0 | AL8: 0 | AM8: 0 | AN8: 0 | AO8: 0 | AP8: 0 | AQ8: 0 | AR8: 0 | AS8: 0 | AT8: 0 | AU8: 0 | AV8: 0 | AW8: 0 | AX8: 0 | AY8: 0 | AZ8: 0 | BA8: 0 | BB8: 0 | BC8: 0 | BD8: 0 | BE8: 0 | BF8: 0 | BG8: 0 | BH8: 0 | BI8: 0 | BJ8: 0 | BK8: 0 | BL8: 0 | BM8: 0 | BN8: 0 | BO8: 0 | BP8: 0 | BQ8: 0 | BR8: 0 | BS8: 0 | BT8: 0 | BU8: 0 | BV8: 0 | BW8: 0 | BX8: 0 | BY8: 0 | BZ8: 0 | CA8: 0 | CB8: 0 | CC8: 0 | CD8: 0 | CE8: 0 | CF8: 0 | CG8: 0 | CH8: 0 | CI8: 0 | CJ8: 0 | CK8: 0 | CL8: 0 | CM8: 0 | CN8: 0 | CO8: 0 | CP8: 0 | CQ8: 0 | CR8: 0 | CS8: 0 | CT8: 0 | CU8: 0 | CV8: 0 | CW8: 0 | CX8: 0 | CY8: 0 | CZ8: 0 | DA8: 0 | DB8: 0 | DC8: 0 | DD8: 0 | DE8: 0 | DF8: 0 | DG8: 0 | DH8: 0 | DI8: 0 | DJ8: 0 | DK8: 0 | DL8: 0 | DM8: 0 | DN8: 0 | DO8: 0 | DP8: 0 | DQ8: 0 | DR8: 0 | DS8: 0 | DT8: 0 | DU8: 0 | DV8: 0 | DW8: 0 | DX8: 0 | DY8: 0 | DZ8: 0 | EA8: 0 | EB8: 0 | EC8: 0 | ED8: 0 | EE8: 0 | EF8: 0 | EG8: 0 | EH8: 0 | EI8: 0 | EJ8: 0 | EK8: 0 | EL8: 0 | EM8: 0 | EN8: 0 | EO8: 0 | EP8: 0 | EQ8: 0 | ER8: 0 | ES8: 0 | ET8: 0 | EU8: 0 | EV8: 0 | EW8: 0 | EX8: 0 | EY8: 0 | EZ8: 0 | FA8: 0 | FB8: 0 | FC8: 0 | FD8: 0 | FE8: 0 | FF8: 0
A9: Embalagem | B9: =IF(AU!$AB$2=0,0,IF(ISERROR(VLOOKUP(A9,Setores!A:I,6,FALSE)),0,VLOOKUP(A9,Setores!A:I,9,FALSE))) -> 3.877005348 | C9: 1 | D9: 2 | E9: 3 | F9: 0 | G9: 0 | H9: 0 | I9: 0 | J9: 0 | K9: 0 | L9: 0 | M9: 0 | N9: 0 | O9: 0 | P9: 0 | Q9: 0 | R9: 0 | S9: 0 | T9: 0 | U9: 0 | V9: 0 | W9: 0 | X9: 0 | Y9: 0 | Z9: 0 | AA9: 0 | AB9: 0 | AC9: 0 | AD9: 0 | AE9: 0 | AF9: 0 | AG9: 0 | AH9: 0 | AI9: 0 | AJ9: 0 | AK9: 0 | AL9: 0 | AM9: 0 | AN9: 0 | AO9: 0 | AP9: 0 | AQ9: 0 | AR9: 0 | AS9: 0 | AT9: 0 | AU9: 0 | AV9: 0 | AW9: 0 | AX9: 0 | AY9: 0 | AZ9: 0 | BA9: 0 | BB9: 0 | BC9: 0 | BD9: 0 | BE9: 0 | BF9: 0 | BG9: 0 | BH9: 0 | BI9: 0 | BJ9: 0 | BK9: 0 | BL9: 0 | BM9: 0 | BN9: 0 | BO9: 0 | BP9: 0 | BQ9: 0 | BR9: 0 | BS9: 0 | BT9: 0 | BU9: 0 | BV9: 0 | BW9: 0 | BX9: 0 | BY9: 0 | BZ9: 0 | CA9: 0 | CB9: 0 | CC9: 0 | CD9: =IF(CD$4>$B9,0,IF($B9>CD$4,CD$4,$B9)) -> 0 | CE9: 0 | CF9: 0 | CG9: 0 | CH9: 0 | CI9: 0 | CJ9: 0 | CK9: 0 | CL9: 0 | CM9: 0 | CN9: 0 | CO9: 0 | CP9: 0 | CQ9: 0 | CR9: 0 | CS9: 0 | CT9: 0 | CU9: 0 | CV9: 0 | CW9: 0 | CX9: 0 | CY9: 0 | CZ9: 0 | DA9: 0 | DB9: 0 | DC9: 0 | DD9: 0 | DE9: 0 | DF9: 0 | DG9: 0 | DH9: 0 | DI9: 0 | DJ9: 0 | DK9: 0 | DL9: 0 | DM9: 0 | DN9: 0 | DO9: 0 | DP9: 0 | DQ9: 0 | DR9: 0 | DS9: 0 | DT9: 0 | DU9: 0 | DV9: 0 | DW9: 0 | DX9: 0 | DY9: 0 | DZ9: 0 | EA9: 0 | EB9: 0 | EC9: 0 | ED9: 0 | EE9: 0 | EF9: 0 | EG9: 0 | EH9: 0 | EI9: 0 | EJ9: 0 | EK9: 0 | EL9: 0 | EM9: 0 | EN9: 0 | EO9: 0 | EP9: =IF(EP$4>$B9,0,IF($B9>EP$4,EP$4,$B9)) -> 0 | EQ9: 0 | ER9: 0 | ES9: 0 | ET9: 0 | EU9: 0 | EV9: 0 | EW9: 0 | EX9: 0 | EY9: 0 | EZ9: 0 | FA9: 0 | FB9: 0 | FC9: 0 | FD9: 0 | FE9: 0 | FF9: 0
A10: Revisão | B10: =IF(AU!$AB$2=0,0,IF(ISERROR(VLOOKUP(A10,Setores!A:I,6,FALSE)),0,VLOOKUP(A10,Setores!A:I,9,FALSE))) -> 0 | C10: 0 | D10: 0 | E10: 0 | F10: 0 | G10: 0 | H10: 0 | I10: 0 | J10: 0 | K10: 0 | L10: 0 | M10: 0 | N10: 0 | O10: 0 | P10: 0 | Q10: 0 | R10: 0 | S10: 0 | T10: 0 | U10: 0 | V10: 0 | W10: 0 | X10: 0 | Y10: 0 | Z10: 0 | AA10: 0 | AB10: 0 | AC10: 0 | AD10: 0 | AE10: 0 | AF10: 0 | AG10: 0 | AH10: 0 | AI10: 0 | AJ10: 0 | AK10: 0 | AL10: 0 | AM10: 0 | AN10: 0 | AO10: 0 | AP10: 0 | AQ10: 0 | AR10: 0 | AS10: 0 | AT10: 0 | AU10: 0 | AV10: 0 | AW10: 0 | AX10: 0 | AY10: 0 | AZ10: 0 | BA10: 0 | BB10: 0 | BC10: 0 | BD10: 0 | BE10: 0 | BF10: 0 | BG10: 0 | BH10: 0 | BI10: 0 | BJ10: 0 | BK10: 0 | BL10: 0 | BM10: 0 | BN10: 0 | BO10: 0 | BP10: 0 | BQ10: 0 | BR10: 0 | BS10: 0 | BT10: 0 | BU10: 0 | BV10: 0 | BW10: 0 | BX10: 0 | BY10: 0 | BZ10: 0 | CA10: 0 | CB10: 0 | CC10: 0 | CD10: 0 | CE10: 0 | CF10: 0 | CG10: 0 | CH10: 0 | CI10: 0 | CJ10: 0 | CK10: 0 | CL10: 0 | CM10: 0 | CN10: 0 | CO10: 0 | CP10: 0 | CQ10: 0 | CR10: 0 | CS10: 0 | CT10: 0 | CU10: 0 | CV10: 0 | CW10: 0 | CX10: 0 | CY10: 0 | CZ10: 0 | DA10: 0 | DB10: 0 | DC10: 0 | DD10: 0 | DE10: 0 | DF10: 0 | DG10: 0 | DH10: 0 | DI10: 0 | DJ10: 0 | DK10: 0 | DL10: 0 | DM10: 0 | DN10: 0 | DO10: 0 | DP10: 0 | DQ10: 0 | DR10: 0 | DS10: 0 | DT10: 0 | DU10: 0 | DV10: 0 | DW10: 0 | DX10: 0 | DY10: 0 | DZ10: 0 | EA10: 0 | EB10: 0 | EC10: 0 | ED10: 0 | EE10: 0 | EF10: 0 | EG10: 0 | EH10: 0 | EI10: 0 | EJ10: 0 | EK10: 0 | EL10: 0 | EM10: 0 | EN10: 0 | EO10: 0 | EP10: 0 | EQ10: 0 | ER10: 0 | ES10: 0 | ET10: 0 | EU10: 0 | EV10: 0 | EW10: 0 | EX10: 0 | EY10: 0 | EZ10: 0 | FA10: 0 | FB10: 0 | FC10: 0 | FD10: 0 | FE10: 0 | FF10: 0

Sheet Lançar Pedidos (hidden)
A1: Nº Pedido | B1: Data do Pedido | C1: Data de Entrega | D1: Ref. | E1: Qtde de Peças
A2: 1 | B2: 2016-08-15 | C2: 2016-09-10 | D2: 1 | E2: 1200

Sheet Lançar produção (hidden)
A1: Data | B1: Ref. | C1: Setor | D1: Concatenar | E1: Qtde de Peças | F1: Minutos Peça | G1: Minutos Produzidos | H1: Peças à Produzir
A2: 2016-08-20 | B2: 1 | C2: Corte | D2: =CONCATENATE(B2,"-",C2) -> 1-Corte | E2: 500 | F2: =IF(AU!$AB$2=0,0,IF(C2=0,0,IF(ISERROR(VLOOKUP(B2&"-"&C2,'Cadastro Refs'!C:D,2,FALSE)),"? verificar",VLOOKUP(B2&"-"&C2,'Cadastro Refs'!C:D,2,FALSE)))) -> 1.35 | G2: =IF(E2=0,0,E2*F2) -> 675 | H2: =IF(AU!$AB$2=0,0,SUMIF('Cadastro Refs'!C:C,D2,'Cadastro Refs'!I:I)) -> 700
A3: 2016-08-26 | B3: 1 | C3: Costura | D3: =CONCATENATE(B3,"-",C3) -> 1-Costura | E3: 500 | F3: =IF(AU!$AB$2=0,0,IF(C3=0,0,IF(ISERROR(VLOOKUP(B3&"-"&C3,'Cadastro Refs'!C:D,2,FALSE)),"? verificar",VLOOKUP(B3&"-"&C3,'Cadastro Refs'!C:D,2,FALSE)))) -> 5.48 | G3: =IF(E3=0,0,E3*F3) -> 2740 | H3: =IF(AU!$AB$2=0,0,SUMIF('Cadastro Refs'!C:C,D3,'Cadastro Refs'!I:I)) -> 700
D4: =CONCATENATE(B4,"-",C4) -> - | F4: =IF(AU!$AB$2=0,0,IF(C4=0,0,IF(ISERROR(VLOOKUP(B4&"-"&C4,'Cadastro Refs'!C:D,2,FALSE)),"? verificar",VLOOKUP(B4&"-"&C4,'Cadastro Refs'!C:D,2,FALSE)))) -> 0 | G4: =IF(E4=0,0,E4*F4) -> 0 | H4: =IF(AU!$AB$2=0,0,SUMIF('Cadastro Refs'!C:C,D4,'Cadastro Refs'!I:I)) -> 0
D5: =CONCATENATE(B5,"-",C5) -> - | F5: =IF(AU!$AB$2=0,0,IF(C5=0,0,IF(ISERROR(VLOOKUP(B5&"-"&C5,'Cadastro Refs'!C:D,2,FALSE)),"? verificar",VLOOKUP(B5&"-"&C5,'Cadastro Refs'!C:D,2,FALSE)))) -> 0 | G5: =IF(E5=0,0,E5*F5) -> 0 | H5: =IF(AU!$AB$2=0,0,SUMIF('Cadastro Refs'!C:C,D5,'Cadastro Refs'!I:I)) -> 0
D6: =CONCATENATE(B6,"-",C6) -> - | F6: =IF(AU!$AB$2=0,0,IF(C6=0,0,IF(ISERROR(VLOOKUP(B6&"-"&C6,'Cadastro Refs'!C:D,2,FALSE)),"? verificar",VLOOKUP(B6&"-"&C6,'Cadastro Refs'!C:D,2,FALSE)))) -> 0 | G6: =IF(E6=0,0,E6*F6) -> 0 | H6: =IF(AU!$AB$2=0,0,SUMIF('Cadastro Refs'!C:C,D6,'Cadastro Refs'!I:I)) -> 0

Sheet Cadastro Refs (hidden)
A1: Ref. | B1: Setores | C1: Concatenar | D1: Minutos do Setor | E1: Qtde peças Pedido | F1: Minutos Pedidos | G1: Qtde peças Produzidos | H1: Minutos Produzidos | I1: Qtde peças à Produzir | J1: Minutos à Produzir
A2: 1 | B2: Corte | C2: =IF(A2=0,"",CONCATENATE(A2,"-",B2)) -> 1-Corte | D2: 1.35 | E2: =IF(AU!$AB$2=0,0,SUMIF('Lançar Pedidos'!D:D,A2,'Lançar Pedidos'!E:E)) -> 1200 | F2: =D2*E2 -> 1620 | G2: =IF(AU!$AB$2=0,0,SUMIF('Lançar produção'!D:D,C2,'Lançar produção'!E:E)) -> 500 | H2: =SUMIF('Lançar produção'!D:D,C:C,'Lançar produção'!G:G) -> 675 | I2: =E2-G2 -> 700 | J2: =F2-H2 -> 945
A3: 1 | B3: Costura | C3: 1-Costura | D3: 5.48 | E3: =IF(AU!$AB$2=0,0,SUMIF('Lançar Pedidos'!D:D,A3,'Lançar Pedidos'!E:E)) -> 1200 | F3: 6576 | G3: =IF(AU!$AB$2=0,0,SUMIF('Lançar produção'!D:D,C3,'Lançar produção'!E:E)) -> 500 | H3: =SUMIF('Lançar produção'!D:D,C:C,'Lançar produção'!G:G) -> 2740 | I3: 700 | J3: 3836
A4: 1 | B4: Embalagem | C4: 1-Embalagem | D4: 1.45 | E4: =IF(AU!$AB$2=0,0,SUMIF('Lançar Pedidos'!D:D,A4,'Lançar Pedidos'!E:E)) -> 1200 | F4: 1740 | G4: =IF(AU!$AB$2=0,0,SUMIF('Lançar produção'!D:D,C4,'Lançar produção'!E:E)) -> 0 | H4: =SUMIF('Lançar produção'!D:D,C:C,'Lançar produção'!G:G) -> 0 | I4: 1200 | J4: 1740
E5: =IF(AU!$AB$2=0,0,SUMIF('Lançar Pedidos'!D:D,A5,'Lançar Pedidos'!E:E)) -> 0 | F5: 0 | G5: =IF(AU!$AB$2=0,0,SUMIF('Lançar produção'!D:D,C5,'Lançar produção'!E:E)) -> 0 | H5: =SUMIF('Lançar produção'!D:D,C:C,'Lançar produção'!G:G) -> 0 | I5: 0 | J5: 0
E6: =IF(AU!$AB$2=0,0,SUMIF('Lançar Pedidos'!D:D,A6,'Lançar Pedidos'!E:E)) -> 0 | F6: 0 | G6: =IF(AU!$AB$2=0,0,SUMIF('Lançar produção'!D:D,C6,'Lançar produção'!E:E)) -> 0 | H6: =SUMIF('Lançar produção'!D:D,C:C,'Lançar produção'!G:G) -> 0 | I6: 0 | J6: 0
E7: =IF(AU!$AB$2=0,0,SUMIF('Lançar Pedidos'!D:D,A7,'Lançar Pedidos'!E:E)) -> 0 | F7: 0 | G7: =IF(AU!$AB$2=0,0,SUMIF('Lançar produção'!D:D,C7,'Lançar produção'!E:E)) -> 0 | H7: =SUMIF('Lançar produção'!D:D,C:C,'Lançar produção'!G:G) -> 0 | I7: 0 | J7: 0
E8: =IF(AU!$AB$2=0,0,SUMIF('Lançar Pedidos'!D:D,A8,'Lançar Pedidos'!E:E)) -> 0 | F8: 0 | G8: =IF(AU!$AB$2=0,0,SUMIF('Lançar produção'!D:D,C8,'Lançar produção'!E:E)) -> 0 | H8: =SUMIF('Lançar produção'!D:D,C:C,'Lançar produção'!G:G) -> 0 | I8: 0 | J8: 0
E9: =IF(AU!$AB$2=0,0,SUMIF('Lançar Pedidos'!D:D,A9,'Lançar Pedidos'!E:E)) -> 0 | F9: 0 | G9: =IF(AU!$AB$2=0,0,SUMIF('Lançar produção'!D:D,C9,'Lançar produção'!E:E)) -> 0 | H9: =SUMIF('Lançar produção'!D:D,C:C,'Lançar produção'!G:G) -> 0 | I9: 0 | J9: 0
E10: =IF(AU!$AB$2=0,0,SUMIF('Lançar Pedidos'!D:D,A10,'Lançar Pedidos'!E:E)) -> 0 | F10: 0 | G10: =IF(AU!$AB$2=0,0,SUMIF('Lançar produção'!D:D,C10,'Lançar produção'!E:E)) -> 0 | H10: =SUMIF('Lançar produção'!D:D,C:C,'Lançar produção'!G:G) -> 0 | I10: 0 | J10: 0

Sheet Setores (hidden)
A1: Setores | B1: Qtde de Peças Pedidos | C1: Minutos Pedidos | D1: Qtde de Peças Produzidas | E1: Minutos Produzidos | F1: Qtde de Peças à Produzir | G1: Minutos à Produzir | H1: Minutos Disponível / Dia | I1: Qtde Dias à Produzir
A2: Corte | B2: =SUMIF('Cadastro Refs'!B:B,A2,'Cadastro Refs'!E:E) -> 1200 | C2: =IF(AU!$AB$2=0,0,SUMIF('Cadastro Refs'!B:B,A2,'Cadastro Refs'!F:F)) -> 1620 | D2: =SUMIF('Lançar produção'!C:C,A2,'Lançar produção'!E:E) -> 500 | E2: =IF(AU!$AB$2=0,0,SUMIF('Lançar produção'!C:C,A2,'Lançar produção'!G:G)) -> 675 | F2: =B2-D2 -> 700 | G2: =C2-E2 -> 945 | H2: =IF(AU!$AB$2=0,0,SUMIF('Nome Terceirização'!B:B,A2,'Nome Terceirização'!F:F)) -> 475.2 | I2: =IF(G2=0,0,IF(H2=0,0,G2/H2)) -> 1.988636364
A3: Costura | B3: =SUMIF('Cadastro Refs'!B:B,A3,'Cadastro Refs'!E:E) -> 1200 | C3: =IF(AU!$AB$2=0,0,SUMIF('Cadastro Refs'!B:B,A3,'Cadastro Refs'!F:F)) -> 6576 | D3: =SUMIF('Lançar produção'!C:C,A3,'Lançar produção'!E:E) -> 500 | E3: =IF(AU!$AB$2=0,0,SUMIF('Lançar produção'!C:C,A3,'Lançar produção'!G:G)) -> 2740 | F3: =B3-D3 -> 700 | G3: =C3-E3 -> 3836 | H3: =IF(AU!$AB$2=0,0,SUMIF('Nome Terceirização'!B:B,A3,'Nome Terceirização'!F:F)) -> 2112 | I3: =IF(G3=0,0,IF(H3=0,0,G3/H3)) -> 1.816287879
A4: Embalagem | B4: =SUMIF('Cadastro Refs'!B:B,A4,'Cadastro Refs'!E:E) -> 1200 | C4: =IF(AU!$AB$2=0,0,SUMIF('Cadastro Refs'!B:B,A4,'Cadastro Refs'!F:F)) -> 1740 | D4: =SUMIF('Lançar produção'!C:C,A4,'Lançar produção'!E:E) -> 0 | E4: =IF(AU!$AB$2=0,0,SUMIF('Lançar produção'!C:C,A4,'Lançar produção'!G:G)) -> 0 | F4: =B4-D4 -> 1200 | G4: =C4-E4 -> 1740 | H4: =IF(AU!$AB$2=0,0,SUMIF('Nome Terceirização'!B:B,A4,'Nome Terceirização'!F:F)) -> 448.8 | I4: =IF(G4=0,0,IF(H4=0,0,G4/H4)) -> 3.877005348
A5: Estamparia | B5: =SUMIF('Cadastro Refs'!B:B,A5,'Cadastro Refs'!E:E) -> 0 | C5: =IF(AU!$AB$2=0,0,SUMIF('Cadastro Refs'!B:B,A5,'Cadastro Refs'!F:F)) -> 0 | D5: =SUMIF('Lançar produção'!C:C,A5,'Lançar produção'!E:E) -> 0 | E5: =IF(AU!$AB$2=0,0,SUMIF('Lançar produção'!C:C,A5,'Lançar produção'!G:G)) -> 0 | F5: =B5-D5 -> 0 | G5: =C5-E5 -> 0 | H5: =IF(AU!$AB$2=0,0,SUMIF('Nome Terceirização'!B:B,A5,'Nome Terceirização'!F:F)) -> 0 | I5: =IF(G5=0,0,IF(H5=0,0,G5/H5)) -> 0
A6: Revisão | B6: =SUMIF('Cadastro Refs'!B:B,A6,'Cadastro Refs'!E:E) -> 0 | C6: =IF(AU!$AB$2=0,0,SUMIF('Cadastro Refs'!B:B,A6,'Cadastro Refs'!F:F)) -> 0 | D6: =SUMIF('Lançar produção'!C:C,A6,'Lançar produção'!E:E) -> 0 | E6: =IF(AU!$AB$2=0,0,SUMIF('Lançar produção'!C:C,A6,'Lançar produção'!G:G)) -> 0 | F6: =B6-D6 -> 0 | G6: =C6-E6 -> 0 | H6: =IF(AU!$AB$2=0,0,SUMIF('Nome Terceirização'!B:B,A6,'Nome Terceirização'!F:F)) -> 0 | I6: =IF(G6=0,0,IF(H6=0,0,G6/H6)) -> 0
B7: =SUMIF('Cadastro Refs'!B:B,A7,'Cadastro Refs'!E:E) -> 0 | C7: =IF(AU!$AB$2=0,0,SUMIF('Cadastro Refs'!B:B,A7,'Cadastro Refs'!F:F)) -> 0 | D7: =SUMIF('Lançar produção'!C:C,A7,'Lançar produção'!E:E) -> 0 | E7: =IF(AU!$AB$2=0,0,SUMIF('Lançar produção'!C:C,A7,'Lançar produção'!G:G)) -> 0 | F7: =B7-D7 -> 0 | G7: =C7-E7 -> 0 | H7: =IF(AU!$AB$2=0,0,SUMIF('Nome Terceirização'!B:B,A7,'Nome Terceirização'!F:F)) -> 0 | I7: =IF(G7=0,0,IF(H7=0,0,G7/H7)) -> 0

Sheet Nome Terceirização (hidden)
A1: Nome da Mão de obra | B1: Setor | C1: Qtde operadoras | D1: Minutos trabalhados dia | E1: Eficiência Média | F1: Minutos Disponíveis Diário
A2: Fábrica - Corte | B2: Corte | C2: 1 | D2: 528 | E2: 90 | F2: =C2*D2*(E2/100) -> 475.2
A3: Maria João | B3: Costura | C3: 5 | D3: 528 | E3: 80 | F3: 2112
A4: Fábrica - Embalagem | B4: Embalagem | C4: 1 | D4: 528 | E4: 85 | F4: 448.8
F5: 0
F6: 0
F7: 0
F8: 0
F9: 0

Sheet Dias úteis (hidden)
A1: Seq. 1 | B1: Data | C1: Seq. 2 | F1: Usuário: As datas aqui são automáticas (é igual a hoje - 365 dias e + 3 anos para frente).
A2: =NETWORKDAYS($B$2,B2,feriados) -> 1 | B2: =TODAY()-365 -> 2015-08-26 | C2: =A2 -> 1
A3: 2 | B3: =B2+1 -> 2015-08-27 | C3: =A3 -> 2
A4: 3 | B4: =B3+1 -> 2015-08-28 | C4: 3
A5: 3 | B5: 2015-08-29 | C5: 3
A6: 3 | B6: 2015-08-30 | C6: 3
A7: 4 | B7: 2015-08-31 | C7: 4
A8: 5 | B8: 2015-09-01 | C8: 5
A9: 6 | B9: 2015-09-02 | C9: 6
A10: 7 | B10: 2015-09-03 | C10: 7
A11: 8 | B11: 2015-09-04 | C11: 8
A12: 8 | B12: 2015-09-05 | C12: 8
A13: 8 | B13: 2015-09-06 | C13: 8
A14: 8 | B14: 2015-09-07 | C14: 8
A15: 9 | B15: 2015-09-08 | C15: 9
A16: 10 | B16: 2015-09-09 | C16: 10
A17: 11 | B17: 2015-09-10 | C17: 11
A18: 12 | B18: 2015-09-11 | C18: 12
A19: 12 | B19: 2015-09-12 | C19: 12
A20: 12 | B20: 2015-09-13 | C20: 12
A21: 13 | B21: 2015-09-14 | C21: 13
A22: 14 | B22: 2015-09-15 | C22: 14
A23: 15 | B23: 2015-09-16 | C23: 15
A24: 16 | B24: 2015-09-17 | C24: 16
A25: 17 | B25: 2015-09-18 | C25: 17
A26: 17 | B26: 2015-09-19 | C26: 17
A27: 17 | B27: 2015-09-20 | C27: 17
A28: 18 | B28: 2015-09-21 | C28: 18
A29: 19 | B29: 2015-09-22 | C29: 19
A30: 20 | B30: 2015-09-23 | C30: 20
A31: 21 | B31: 2015-09-24 | C31: 21
A32: 22 | B32: 2015-09-25 | C32: 22
A33: 22 | B33: 2015-09-26 | C33: 22
A34: 22 | B34: 2015-09-27 | C34: 22
A35: 23 | B35: 2015-09-28 | C35: 23
A36: 24 | B36: 2015-09-29 | C36: 24
A37: 25 | B37: 2015-09-30 | C37: 25
A38: 26 | B38: 2015-10-01 | C38: 26
A39: 27 | B39: 2015-10-02 | C39: 27
A40: 27 | B40: 2015-10-03 | C40: 27
A41: 27 | B41: 2015-10-04 | C41: 27
A42: 28 | B42: 2015-10-05 | C42: 28
A43: 29 | B43: 2015-10-06 | C43: 29
A44: 30 | B44: 2015-10-07 | C44: 30
A45: 31 | B45: 2015-10-08 | C45: 31
A46: 32 | B46: 2015-10-09 | C46: 32
A47: 32 | B47: 2015-10-10 | C47: 32
A48: 32 | B48: 2015-10-11 | C48: 32
A49: 32 | B49: 2015-10-12 | C49: 32
A50: 33 | B50: 2015-10-13 | C50: 33
A51: 34 | B51: 2015-10-14 | C51: 34
A52: 35 | B52: 2015-10-15 | C52: 35
A53: 36 | B53: 2015-10-16 | C53: 36
A54: 36 | B54: 2015-10-17 | C54: 36
A55: 36 | B55: 2015-10-18 | C55: 36
A56: 37 | B56: 2015-10-19 | C56: 37
A57: 38 | B57: 2015-10-20 | C57: 38
A58: 39 | B58: 2015-10-21 | C58: 39
A59: 40 | B59: 2015-10-22 | C59: 40
A60: 41 | B60: 2015-10-23 | C60: 41
A61: 41 | B61: 2015-10-24 | C61: 41
A62: 41 | B62: 2015-10-25 | C62: 41
A63: 42 | B63: 2015-10-26 | C63: 42
A64: 43 | B64: 2015-10-27 | C64: 43
A65: 44 | B65: 2015-10-28 | C65: 44
A66: =NETWORKDAYS($B$2,B66,feriados) -> 45 | B66: 2015-10-29 | C66: 45
A67: 46 | B67: 2015-10-30 | C67: =A67 -> 46
A68: 46 | B68: =B67+1 -> 2015-10-31 | C68: 46
A69: 46 | B69: 2015-11-01 | C69: 46
A70: 46 | B70: 2015-11-02 | C70: 46
A71: 47 | B71: 2015-11-03 | C71: 47
A72: 48 | B72: 2015-11-04 | C72: 48
A73: 49 | B73: 2015-11-05 | C73: 49
A74: 50 | B74: 2015-11-06 | C74: 50
A75: 50 | B75: 2015-11-07 | C75: 50
A76: 50 | B76: 2015-11-08 | C76: 50
A77: 51 | B77: 2015-11-09 | C77: 51
A78: 52 | B78: 2015-11-10 | C78: 52
A79: 53 | B79: 2015-11-11 | C79: 53
A80: 54 | B80: 2015-11-12 | C80: 54
A81: 55 | B81: 2015-11-13 | C81: 55
A82: 55 | B82: 2015-11-14 | C82: 55
A83: 55 | B83: 2015-11-15 | C83: 55
A84: 56 | B84: 2015-11-16 | C84: 56
A85: 57 | B85: 2015-11-17 | C85: 57
A86: 58 | B86: 2015-11-18 | C86: 58
A87: 59 | B87: 2015-11-19 | C87: 59
A88: 60 | B88: 2015-11-20 | C88: 60
A89: 60 | B89: 2015-11-21 | C89: 60
A90: 60 | B90: 2015-11-22 | C90: 60
A91: 61 | B91: 2015-11-23 | C91: 61
A92: 62 | B92: 2015-11-24 | C92: 62
A93: 63 | B93: 2015-11-25 | C93: 63
A94: 64 | B94: 2015-11-26 | C94: 64
A95: 65 | B95: 2015-11-27 | C95: 65
A96: 65 | B96: 2015-11-28 | C96: 65
A97: 65 | B97: 2015-11-29 | C97: 65
A98: 66 | B98: 2015-11-30 | C98: 66
A99: 67 | B99: 2015-12-01 | C99: 67
A100: 68 | B100: 2015-12-02 | C100: 68
A101: 69 | B101: 2015-12-03 | C101: 69
A102: 70 | B102: 2015-12-04 | C102: 70
A103: 70 | B103: 2015-12-05 | C103: 70
A104: 70 | B104: 2015-12-06 | C104: 70
A105: 71 | B105: 2015-12-07 | C105: 71
A106: 72 | B106: 2015-12-08 | C106: 72
A107: 73 | B107: 2015-12-09 | C107: 73
A108: 74 | B108: 2015-12-10 | C108: 74
A109: 75 | B109: 2015-12-11 | C109: 75
A110: 75 | B110: 2015-12-12 | C110: 75
A111: 75 | B111: 2015-12-13 | C111: 75
A112: 76 | B112: 2015-12-14 | C112: 76
A113: 77 | B113: 2015-12-15 | C113: 77
A114: 78 | B114: 2015-12-16 | C114: 78
A115: 79 | B115: 2015-12-17 | C115: 79
A116: 80 | B116: 2015-12-18 | C116: 80
A117: 80 | B117: 2015-12-19 | C117: 80
A118: 80 | B118: 2015-12-20 | C118: 80
A119: 81 | B119: 2015-12-21 | C119: 81
A120: 82 | B120: 2015-12-22 | C120: 82
A121: 83 | B121: 2015-12-23 | C121: 83
A122: 84 | B122: 2015-12-24 | C122: 84
A123: 84 | B123: 2015-12-25 | C123: 84
A124: 84 | B124: 2015-12-26 | C124: 84
A125: 84 | B125: 2015-12-27 | C125: 84
A126: 85 | B126: 2015-12-28 | C126: 85
A127: 86 | B127: 2015-12-29 | C127: 86
A128: 87 | B128: 2015-12-30 | C128: 87
A129: 88 | B129: 2015-12-31 | C129: 88
A130: =NETWORKDAYS($B$2,B130,feriados) -> 88 | B130: 2016-01-01 | C130: 88
A131: 88 | B131: 2016-01-02 | C131: =A131 -> 88
A132: 88 | B132: =B131+1 -> 2016-01-03 | C132: 88
A133: 89 | B133: 2016-01-04 | C133: 89
A134: 90 | B134: 2016-01-05 | C134: 90
A135: 91 | B135: 2016-01-06 | C135: 91
A136: 92 | B136: 2016-01-07 | C136: 92
A137: 93 | B137: 2016-01-08 | C137: 93
A138: 93 | B138: 2016-01-09 | C138: 93
A139: 93 | B139: 2016-01-10 | C139: 93
A140: 94 | B140: 2016-01-11 | C140: 94
A141: 95 | B141: 2016-01-12 | C141: 95
A142: 96 | B142: 2016-01-13 | C142: 96
A143: 97 | B143: 2016-01-14 | C143: 97
A144: 98 | B144: 2016-01-15 | C144: 98
A145: 98 | B145: 2016-01-16 | C145: 98
A146: 98 | B146: 2016-01-17 | C146: 98
A147: 99 | B147: 2016-01-18 | C147: 99
A148: 100 | B148: 2016-01-19 | C148: 100
A149: 101 | B149: 2016-01-20 | C149: 101
A150: 102 | B150: 2016-01-21 | C150: 102
A151: 103 | B151: 2016-01-22 | C151: 103
A152: 103 | B152: 2016-01-23 | C152: 103
A153: 103 | B153: 2016-01-24 | C153: 103
A154: 104 | B154: 2016-01-25 | C154: 104
A155: 105 | B155: 2016-01-26 | C155: 105
A156: 106 | B156: 2016-01-27 | C156: 106
A157: 107 | B157: 2016-01-28 | C157: 107
A158: 108 | B158: 2016-01-29 | C158: 108
A159: 108 | B159: 2016-01-30 | C159: 108
A160: 108 | B160: 2016-01-31 | C160: 108
A161: 109 | B161: 2016-02-01 | C161: 109
A162: 110 | B162: 2016-02-02 | C162: 110
A163: 111 | B163: 2016-02-03 | C163: 111
A164: 112 | B164: 2016-02-04 | C164: 112
A165: 113 | B165: 2016-02-05 | C165: 113
A166: 113 | B166: 2016-02-06 | C166: 113
A167: 113 | B167: 2016-02-07 | C167: 113
A168: 113 | B168: 2016-02-08 | C168: 113
A169: 113 | B169: 2016-02-09 | C169: 113
A170: 114 | B170: 2016-02-10 | C170: 114
A171: 115 | B171: 2016-02-11 | C171: 115
A172: 116 | B172: 2016-02-12 | C172: 116
A173: 116 | B173: 2016-02-13 | C173: 116
A174: 116 | B174: 2016-02-14 | C174: 116
A175: 117 | B175: 2016-02-15 | C175: 117
A176: 118 | B176: 2016-02-16 | C176: 118
A177: 119 | B177: 2016-02-17 | C177: 119
A178: 120 | B178: 2016-02-18 | C178: 120
A179: 121 | B179: 2016-02-19 | C179: 121
A180: 121 | B180: 2016-02-20 | C180: 121
A181: 121 | B181: 2016-02-21 | C181: 121
A182: 122 | B182: 2016-02-22 | C182: 122
A183: 123 | B183: 2016-02-23 | C183: 123
A184: 124 | B184: 2016-02-24 | C184: 124
A185: 125 | B185: 2016-02-25 | C185: 125
A186: 126 | B186: 2016-02-26 | C186: 126
A187: 126 | B187: 2016-02-27 | C187: 126
A188: 126 | B188: 2016-02-28 | C188: 126
A189: 127 | B189: 2016-02-29 | C189: 127
A190: 128 | B190: 2016-03-01 | C190: 128
A191: 129 | B191: 2016-03-02 | C191: 129
A192: 130 | B192: 2016-03-03 | C192: 130
A193: 131 | B193: 2016-03-04 | C193: 131
A194: =NETWORKDAYS($B$2,B194,feriados) -> 131 | B194: 2016-03-05 | C194: 131
A195: 131 | B195: 2016-03-06 | C195: =A195 -> 131
A196: 132 | B196: =B195+1 -> 2016-03-07 | C196: 132
A197: 133 | B197: 2016-03-08 | C197: 133
A198: 134 | B198: 2016-03-09 | C198: 134
A199: 135 | B199: 2016-03-10 | C199: 135
A200: 136 | B200: 2016-03-11 | C200: 136
... 898 more rows

Sheet feriados (hidden)
A1: Feriados | B1: Descrição do Feriado (não obrigatório)
A2: 2014-01-01 | B2: Confraternização Universal
A3: 2014-03-03 | B3: Carnaval
A4: 2014-03-04 | B4: Carnaval
A5: 2014-04-18 | B5: Paixão de Cristo (sexta-feira Santa)
A6: 2014-04-21 | B6: Tiradentes
A7: 2014-05-01 | B7: Dia do Trabalho
A8: 2014-06-19 | B8: Corpus Christi
A9: 2014-09-07 | B9: Independência do Brasil
A10: 2014-10-12 | B10: Nossa Sra. Aparecida
A11: 2014-11-02 | B11: Finados
A12: 2014-11-15 | B12: Proclamação da República
A13: 2014-12-25 | B13: Natal
A14: 2015-01-01 | B14: Confraternização Universal
A15: 2015-02-16 | B15: Carnaval
A16: 2015-02-17 | B16: Carnaval
A17: 2015-04-03 | B17: Paixão de Cristo (sexta-feira Santa)
A18: 2015-04-21 | B18: Tiradentes
A19: 2015-05-01 | B19: Dia do Trabalho
A20: 2015-06-04 | B20: Corpus Christi
A21: 2015-09-07 | B21: Independência do Brasil
A22: 2015-10-12 | B22: Nossa Sra. Aparecida
A23: 2015-11-02 | B23: Finados
A24: 2015-11-15 | B24: Proclamação da República
A25: 2015-12-25 | B25: Natal
A26: 2016-01-01 | B26: Confraternização Universal
A27: 2016-02-08 | B27: Carnaval
A28: 2016-02-09 | B28: Carnaval
A29: 2016-03-25 | B29: Paixão de Cristo (sexta-feira Santa)
A30: 2016-04-21 | B30: Tiradentes
A31: 2016-05-01 | B31: Dia do Trabalho
A32: 2016-05-26 | B32: Corpus Christi
A33: 2016-09-07 | B33: Independência do Brasil
A34: 2016-10-12 | B34: Nossa Sra. Aparecida
A35: 2016-11-02 | B35: Finados
A36: 2016-11-15 | B36: Proclamação da República
A37: 2016-12-25 | B37: Natal
A38: 2017-01-01 | B38: Confraternização Universal
A39: 2017-02-27 | B39: Carnaval
A40: 2017-02-28 | B40: Carnaval
A41: 2017-04-14 | B41: Paixão de Cristo (sexta-feira Santa)
A42: 2017-04-21 | B42: Tiradentes
A43: 2017-05-01 | B43: Dia do Trabalho
A44: 2017-06-15 | B44: Corpus Christi
A45: 2017-09-07 | B45: Independência do Brasil
A46: 2017-10-12 | B46: Nossa Sra. Aparecida
A47: 2017-11-02 | B47: Finados
A48: 2017-11-15 | B48: Proclamação da República
A49: 2017-12-25 | B49: Natal
A50: 2018-01-01 | B50: Confraternização Universal
A51: 2018-02-12 | B51: Carnaval
A52: 2018-02-13 | B52: Carnaval
A53: 2018-03-30 | B53: Paixão de Cristo (sexta-feira Santa)
A54: 2018-04-21 | B54: Tiradentes
A55: 2018-05-01 | B55: Dia do Trabalho
A56: 2018-05-31 | B56: Corpus Christi
A57: 2018-09-07 | B57: Independência do Brasil
A58: 2018-10-12 | B58: Nossa Sra. Aparecida
A59: 2018-11-02 | B59: Finados
A60: 2018-11-15 | B60: Proclamação da República
A61: 2018-12-25 | B61: Natal
A62: 2019-01-01 | B62: Confraternização Universal
A63: 2019-03-04 | B63: Carnaval
A64: 2019-03-05 | B64: Carnaval
A65: 2019-04-19 | B65: Paixão de Cristo (sexta-feira Santa)
A66: 2019-04-21 | B66: Tiradentes
A67: 2019-05-01 | B67: Dia do Trabalho
A68: 2019-06-20 | B68: Corpus Christi
A69: 2019-09-07 | B69: Independência do Brasil
A70: 2019-10-12 | B70: Nossa Sra. Aparecida
A71: 2019-11-02 | B71: Finados
A72: 2019-11-15 | B72: Proclamação da República
A73: 2019-12-25 | B73: Natal
A74: 2020-01-01 | B74: Confraternização Universal
A75: 2020-02-24 | B75: Carnaval
A76: 2020-02-25 | B76: Carnaval
A77: 2020-04-10 | B77: Paixão de Cristo (sexta-feira Santa)
A78: 2020-04-21 | B78: Tiradentes
A79: 2020-05-01 | B79: Dia do Trabalho
A80: 2020-06-11 | B80: Corpus Christi
A81: 2020-09-07 | B81: Independência do Brasil
A82: 2020-10-12 | B82: Nossa Sra. Aparecida
A83: 2020-11-02 | B83: Finados
A84: 2020-11-15 | B84: Proclamação da República
A85: 2020-12-25 | B85: Natal
B86: Aniversário da Cidade

Sheet Conversor (hidden)
F1: Quantidade de casas decimais para arredondamento => | G1: 2
B3: Peças / hora | D3: Tempo Padrão | E3: =IF(C3=0,0,ROUND(60/C3,G1)) -> 0
B5: Minutos | C5: Segundos (sexagesimal)
D6: Tempo Padrão | E6: =ROUND(B6+((C6/0.6)/100),G1) -> 0
B8: Minutos | C8: Segundos (sexagesimal) | D8: Qtde Peças
E9: Tempo Padrão | F9: =IF(D9=0,"",ROUND((B9+((C9/0.6)/100))/D9,G1)) -> 
B11: Início | C11: Fim | D11: Total Minutos | E11: Qtde Peças
D12: =IF(C12=0,"",(C12-B12)*1440) ->  | F12: Tempo Padrão | G12: =IF(E12=0,"",ROUND((D12/E12),G1)) -> 
B14: Observação: Você poderá usar a quantidade de casas decimais que achar necessário, basta definir na célula "G1" o arredondamento que desejar e depois poderá clicar nas células dos resultados e definir quantidades de casa decimais que deseja visualizar.

Sheet Conversor-2 (hidden)
B2: Minutos trabalhados: | C2: 528 | D2: Qtde de minutos trabalhados por operadora num determinado período. Exemplo: um dia inteiro ( 44 horas semanais x 60 min. / 5 dias = 528 min. )
B3: Qtde de Operadoras: | C3: 5 | D3: Qtde de pessoas envolvidas no serviço (mão-de-obra direta).
B4: Qtde de peças produzidas: | C4: 400 | D4: Qtde de peças produzidas neste período informado na "Célula C2".
B5: Eficiência do grupo: | C5: 90 | D5: Informe a Eficiência que você julga que o grupo produz as peças.
B6: Tempo padrão estimado: | C6: =IF(C2=0,0,IF(C3=0,0,IF(C4=0,0,IF(C5=0,0,(C3*C2*(C5/100)/C4))))) -> 5.94
